Workbook

Sheet 表格样式3
A1: 贵阳市交通技工学校2023年公开招聘C类岗位工作人员试教成绩及进入体检环节人员名单
A2: 序号 | B2: 姓名 | C2: 准考证号 | D2: 单位 | E2: 报考岗位及代码 | F2: 笔试成绩 | G2: 笔试成绩（百分制） | H2: 笔试成绩40% | I2: 试教成绩 | J2: 试教成绩60% | K2: 笔试、试教成绩 | L2: 综合排名 | M2: 是否进入体检 | N2: 备注
A3: 1 | B3: 黄启里 | C3: 1152019503211 | D3: 贵阳市交通技工学校 | E3: 20101260101 | F3: 197.50 | G3: =F3/3 -> 65.833 | H3: =G3*0.4 -> 26.333 | I3: 83.67 | J3: =I3*0.6 -> 50.202 | K3: =H3+J3 -> 76.535 | L3: 1 | M3: 是 | N3: 同一岗位应聘人员总成绩末位并列的，按实际成绩计算。
A4: 2 | B4: 陈取麟 | C4: 1152019505726 | D4: 贵阳市交通技工学校 | E4: 20101260101 | F4: 199.00 | G4: =F4/3 -> 66.333 | H4: =G4*0.4 -> 26.533 | I4: 83.33 | J4: =I4*0.6 -> 49.998 | K4: 76.531 | L4: 2
A5: 3 | B5: 汤世瑞 | C5: 1152019509502 | D5: 贵阳市交通技工学校 | E5: 20101260101 | F5: 204.00 | G5: =ROUND(F5/3,2) -> 68.00 | H5: =ROUND(G5*0.4,2) -> 27.20 | I5: 81.67 | J5: =ROUND(I5*0.6,2) -> 49.00 | K5: 76.20 | L5: 3
A6: 4 | B6: 樊尚玥 | C6: 1152019511703 | D6: 贵阳市交通技工学校 | E6: 20101260101 | F6: 197.00 | G6: 65.67 | H6: 26.27 | I6: 82.00 | J6: 49.20 | K6: 75.47 | L6: 4
A7: 5 | B7: 吕柯璇 | C7: 1152019503107 | D7: 贵阳市交通技工学校 | E7: 20101260101 | F7: 200.00 | G7: 66.67 | H7: 26.67 | I7: 79.67 | J7: 47.80 | K7: 74.47 | L7: 5
A8: 6 | B8: 钟香霞 | C8: 1152019503328 | D8: 贵阳市交通技工学校 | E8: 20101260101 | F8: 204.50 | G8: 68.17 | H8: 27.27 | I8: 78.33 | J8: 47.00 | K8: 74.27 | L8: 6
A9: 7 | B9: 王明娟 | C9: 1152019509016 | D9: 贵阳市交通技工学校 | E9: 20101260102 | F9: 218.00 | G9: 72.67 | H9: 29.07 | I9: 82.67 | J9: 49.60 | K9: 78.67 | L9: 1 | M9: 是
A10: 8 | B10: 兰云蕊 | C10: 1152019501510 | D10: 贵阳市交通技工学校 | E10: 20101260102 | F10: 204.50 | G10: 68.17 | H10: 27.27 | I10: 84.67 | J10: 50.80 | K10: 78.07 | L10: 2 | M10: 是
A11: 9 | B11: 妙佳慧 | C11: 1152019501830 | D11: 贵阳市交通技工学校 | E11: 20101260102 | F11: 195.00 | G11: 65.00 | H11: 26.00 | I11: 81.67 | J11: 49.00 | K11: 75.00 | L11: 3
A12: 10 | B12: 周玲玲 | C12: 1152019508324 | D12: 贵阳市交通技工学校 | E12: 20101260102 | F12: 191.00 | G12: 63.67 | H12: 25.47 | I12: 82.33 | J12: 49.40 | K12: 74.87 | L12: 4
A13: 11 | B13: 冯婷婷 | C13: 1152019505327 | D13: 贵阳市交通技工学校 | E13: 20101260102 | F13: 199.50 | G13: 66.50 | H13: 26.60 | I13: 80.00 | J13: 48.00 | K13: 74.60 | L13: 5
A14: 12 | B14: 刘茜妍 | C14: 1152019505525 | D14: 贵阳市交通技工学校 | E14: 20101260102 | F14: 199.50 | G14: 66.50 | H14: 26.60 | I14: 79.33 | J14: 47.60 | K14: 74.20 | L14: 6
A15: 13 | B15: 申钰洁 | C15: 1152019506412 | D15: 贵阳市交通技工学校 | E15: 20101260102 | F15: 188.00 | G15: 62.67 | H15: 25.07 | I15: 80.33 | J15: 48.20 | K15: 73.27 | L15: 7
A16: 14 | B16: 王蜀 | C16: 1152019509323 | D16: 贵阳市交通技工学校 | E16: 20101260102 | F16: 188.50 | G16: 62.83 | H16: 25.13 | I16: 79.00 | J16: 47.40 | K16: 72.53 | L16: 8
A17: 15 | B17: 邓涛涛 | C17: 1152019508830 | D17: 贵阳市交通技工学校 | E17: 20101260102 | F17: 194.00 | G17: 64.67 | H17: 25.87 | I17: 76.67 | J17: 46.00 | K17: 71.87 | L17: 9
A18: 16 | B18: 叶旖旎 | C18: 1152019500914 | D18: 贵阳市交通技工学校 | E18: 20101260102 | F18: 203.50 | G18: 67.83 | H18: 27.13 | I18: 0.00 | J18: 0.00 | K18: 27.13 | L18: 10 | M18: 缺考
A19: 17 | B19: 杜清芳 | C19: 1152019510427 | D19: 贵阳市交通技工学校 | E19: 20101260102 | F19: 195.00 | G19: 65.00 | H19: 26.00 | I19: 0.00 | J19: 0.00 | K19: 26.00 | L19: 11 | M19: 缺考
A20: 18 | B20: 朱璧琛 | C20: 1152019505922 | D20: 贵阳市交通技工学校 | E20: 20101260102 | F20: 194.00 | G20: 64.67 | H20: 25.87 | I20: 0.00 | J20: 0.00 | K20: 25.87 | L20: 12 | M20: 缺考
A21: 19 | B21: 祝清玉 | C21: 1152019505408 | D21: 贵阳市交通技工学校 | E21: 20101260103 | F21: 212.00 | G21: 70.67 | H21: 28.27 | I21: 84.33 | J21: 50.60 | K21: 78.87 | L21: 1 | M21: 是
A22: 20 | B22: 张凌国 | C22: 1152019506408 | D22: 贵阳市交通技工学校 | E22: 20101260103 | F22: 186.00 | G22: 62.00 | H22: 24.80 | I22: 87.00 | J22: 52.20 | K22: 77.00 | L22: 2 | M22: 是
A23: 21 | B23: 王捷 | C23: 1152019510413 | D23: 贵阳市交通技工学校 | E23: 20101260103 | F23: 201.50 | G23: 67.17 | H23: 26.87 | I23: 80.33 | J23: 48.20 | K23: 75.07 | L23: 3
A24: 22 | B24: 姚正锴 | C24: 1152019502217 | D24: 贵阳市交通技工学校 | E24: 20101260103 | F24: 196.50 | G24: 65.50 | H24: 26.20 | I24: 81.00 | J24: 48.60 | K24: 74.80 | L24: 4
A25: 23 | B25: 周兴 | C25: 1152019507509 | D25: 贵阳市交通技工学校 | E25: 20101260103 | F25: 193.50 | G25: 64.50 | H25: 25.80 | I25: 81.33 | J25: 48.80 | K25: 74.60 | L25: 5
A26: 24 | B26: 周世龙 | C26: 1152019507818 | D26: 贵阳市交通技工学校 | E26: 20101260103 | F26: 182.00 | G26: 60.67 | H26: 24.27 | I26: 83.00 | J26: 49.80 | K26: 74.07 | L26: 6
A27: 25 | B27: 许明金 | C27: 1152019505329 | D27: 贵阳市交通技工学校 | E27: 20101260103 | F27: 175.50 | G27: 58.50 | H27: 23.40 | I27: 73.33 | J27: 44.00 | K27: 67.40 | L27: 7
A28: 26 | B28: 李文 | C28: 1152019505625 | D28: 贵阳市交通技工学校 | E28: 20101260103 | F28: 125.00 | G28: 41.67 | H28: 16.67 | I28: 84.33 | J28: 50.60 | K28: 67.27 | L28: 8
A29: 27 | B29: 刘林帅 | C29: 1152019502712 | D29: 贵阳市交通技工学校 | E29: 20101260103 | F29: 148.00 | G29: 49.33 | H29: 19.73 | I29: 68.67 | J29: 41.20 | K29: 60.93 | L29: 9
A30: 28 | B30: 熊园 | C30: 1152019506028 | D30: 贵阳市交通技工学校 | E30: 20101260103 | F30: 154.50 | G30: 51.50 | H30: 20.60 | I30: 0.00 | J30: 0.00 | K30: 20.60 | L30: 10 | M30: 缺考
A31: 29 | B31: 张澳 | C31: 1152019502709 | D31: 贵阳市交通技工学校 | E31: 20101260104 | F31: 197.50 | G31: 65.83 | H31: 26.33 | I31: 88.00 | J31: 52.80 | K31: 79.13 | L31: 1 | M31: 是
A32: 30 | B32: 田海东 | C32: 1152019505526 | D32: 贵阳市交通技工学校 | E32: 20101260104 | F32: 193.00 | G32: 64.33 | H32: 25.73 | I32: 86.67 | J32: 52.00 | K32: 77.73 | L32: 2 | M32: 是
A33: 31 | B33: 刘诗雨 | C33: 1152019500503 | D33: 贵阳市交通技工学校 | E33: 20101260104 | F33: 176.00 | G33: 58.67 | H33: 23.47 | I33: 89.00 | J33: 53.40 | K33: 76.87 | L33: 3
A34: 32 | B34: 陈松林 | C34: 1152019505317 | D34: 贵阳市交通技工学校 | E34: 20101260104 | F34: 190.50 | G34: 63.50 | H34: 25.40 | I34: 82.00 | J34: 49.20 | K34: 74.60 | L34: 4
A35: 33 | B35: 侯丹丹 | C35: 1152019500524 | D35: 贵阳市交通技工学校 | E35: 20101260104 | F35: 189.00 | G35: 63.00 | H35: 25.20 | I35: 79.00 | J35: 47.40 | K35: 72.60 | L35: 5
A36: 34 | B36: 陆莹 | C36: 1152019505825 | D36: 贵阳市交通技工学校 | E36: 20101260104 | F36: 172.50 | G36: 57.50 | H36: 23.00 | I36: 82.33 | J36: 49.40 | K36: 72.40 | L36: 6
A37: 35 | B37: 付岗环 | C37: 1152019505714 | D37: 贵阳市交通技工学校 | E37: 20101260104 | F37: 166.00 | G37: 55.33 | H37: 22.13 | I37: 79.67 | J37: 47.80 | K37: 69.93 | L37: 7
A38: 36 | B38: 闫桐瑞 | C38: 1152019503826 | D38: 贵阳市交通技工学校 | E38: 20101260104 | F38: 183.00 | G38: 61.00 | H38: 24.40 | I38: 72.67 | J38: 43.60 | K38: 68.00 | L38: 8
A39: 37 | B39: 彭菲 | C39: 1152019506416 | D39: 贵阳市交通技工学校 | E39: 20101260104 | F39: 168.50 | G39: 56.17 | H39: 22.47 | I39: 73.00 | J39: 43.80 | K39: 66.27 | L39: 9
A40: 38 | B40: 张卓淳 | C40: 1152019511518 | D40: 贵阳市交通技工学校 | E40: 20101260104 | F40: 171.00 | G40: 57.00 | H40: 22.80 | I40: 70.67 | J40: 42.40 | K40: 65.20 | L40: 10
A41: 39 | B41: 陈布克 | C41: 1152019502703 | D41: 贵阳市交通技工学校 | E41: 20101260104 | F41: 175.50 | G41: 58.50 | H41: 23.40 | I41: 0.00 | J41: 0.00 | K41: 23.40 | L41: 11 | M41: 缺考
A42: 40 | B42: 刘力力 | C42: 1152019511724 | D42: 贵阳市交通技工学校 | E42: 20101260104 | F42: 173.50 | G42: 57.83 | H42: 23.13 | I42: 0.00 | J42: 0.00 | K42: 23.13 | L42: 12 | M42: 缺考
A43: 41 | B43: 张广平 | C43: 1152019510919 | D43: 贵阳市交通技工学校 | E43: 20101260105 | F43: 196.50 | G43: 65.50 | H43: 26.20 | I43: 86.33 | J43: 51.80 | K43: 78.00 | L43: 1 | M43: 是
A44: 42 | B44: 吕港 | C44: 1152019508914 | D44: 贵阳市交通技工学校 | E44: 20101260105 | F44: 189.50 | G44: 63.17 | H44: 25.27 | I44: 82.67 | J44: 49.60 | K44: 74.87 | L44: 2
A45: 43 | B45: 郭祥 | C45: 1152019507801 | D45: 贵阳市交通技工学校 | E45: 20101260105 | F45: 188.50 | G45: 62.83 | H45: 25.13 | I45: 82.00 | J45: 49.20 | K45: 74.33 | L45: 3
A46: 44 | B46: 陈古财 | C46: 1152019505302 | D46: 贵阳市交通技工学校 | E46: 20101260105 | F46: 186.50 | G46: 62.17 | H46: 24.87 | I46: 81.67 | J46: 49.00 | K46: 73.87 | L46: 4
A47: 45 | B47: 李义 | C47: 1152019506216 | D47: 贵阳市交通技工学校 | E47: 20101260105 | F47: 192.00 | G47: 64.00 | H47: 25.60 | I47: 77.67 | J47: 46.60 | K47: 72.20 | L47: 5
A48: 46 | B48: 王涛 | C48: 1152019507220 | D48: 贵阳市交通技工学校 | E48: 20101260105 | F48: 186.50 | G48: 62.17 | H48: 24.87 | I48: 71.67 | J48: 43.00 | K48: 67.87 | L48: 6
A49: 47 | B49: 张蕾 | C49: 1152019504511 | D49: 贵阳市交通技工学校 | E49: 20101260106 | F49: 210.00 | G49: 70.00 | H49: 28.00 | I49: 83.00 | J49: 49.80 | K49: 77.80 | L49: 1 | M49: 是
A50: 48 | B50: 韩倩 | C50: 1152019502412 | D50: 贵阳市交通技工学校 | E50: 20101260106 | F50: 204.00 | G50: 68.00 | H50: 27.20 | I50: 83.33 | J50: 50.00 | K50: 77.20 | L50: 2
A51: 49 | B51: 宋宸 | C51: 1152019508902 | D51: 贵阳市交通技工学校 | E51: 20101260106 | F51: 201.00 | G51: 67.00 | H51: 26.80 | I51: 81.00 | J51: 48.60 | K51: 75.40 | L51: 3
A52: 50 | B52: 冯涛 | C52: 1152019502916 | D52: 贵阳市交通技工学校 | E52: 20101260106 | F52: 192.50 | G52: 64.17 | H52: 25.67 | I52: 80.33 | J52: 48.20 | K52: 73.87 | L52: 4
A53: 51 | B53: 徐佳琪 | C53: 1152019511116 | D53: 贵阳市交通技工学校 | E53: 20101260106 | F53: 188.50 | G53: 62.83 | H53: 25.13 | I53: 78.67 | J53: 47.20 | K53: 72.33 | L53: 5
A54: 52 | B54: 郑博洁 | C54: 1152019508125 | D54: 贵阳市交通技工学校 | E54: 20101260106 | F54: 187.00 | G54: 62.33 | H54: 24.93 | I54: 78.67 | J54: 47.20 | K54: 72.13 | L54: 6
A55: 53 | B55: 张惠语 | C55: 1152019509708 | D55: 贵阳市交通技工学校 | E55: 20101260107 | F55: 201.50 | G55: 67.17 | H55: 26.87 | I55: 79.33 | J55: 47.60 | K55: 74.47 | L55: 1 | M55: 是
A56: 54 | B56: 曾渝媛 | C56: 1152019502302 | D56: 贵阳市交通技工学校 | E56: 20101260107 | F56: 201.50 | G56: 67.17 | H56: 26.87 | I56: 77.33 | J56: 46.40 | K56: 73.27 | L56: 2
A57: 55 | B57: 龙雅杰 | C57: 1152019508002 | D57: 贵阳市交通技工学校 | E57: 20101260107 | F57: 203.50 | G57: 67.83 | H57: 27.13 | I57: 75.00 | J57: 45.00 | K57: 72.13 | L57: 3
A58: 56 | B58: 黄沙沙 | C58: 1152019508420 | D58: 贵阳市交通技工学校 | E58: 20101260107 | F58: 192.00 | G58: 64.00 | H58: 25.60 | I58: 70.67 | J58: 42.40 | K58: 68.00 | L58: 4
A59: 57 | B59: 陈璐 | C59: 1152019501001 | D59: 贵阳市交通技工学校 | E59: 20101260107 | F59: 196.50 | G59: 65.50 | H59: 26.20 | I59: 0.00 | J59: 0.00 | K59: 26.20 | L59: 5 | M59: 缺考
A60: 58 | B60: 安洁霖 | C60: 1152019509904 | D60: 贵阳市交通技工学校 | E60: 20101260107 | F60: 192.50 | G60: 64.17 | H60: 25.67 | I60: 0.00 | J60: 0.00 | K60: 25.67 | L60: 6 | M60: 缺考
A61: 59 | B61: 李宏根 | C61: 1152019511515 | D61: 贵阳市交通技工学校 | E61: 20101260108 | F61: 214.00 | G61: 71.33 | H61: 28.53 | I61: 84.00 | J61: 50.40 | K61: 78.93 | L61: 1 | M61: 是
A62: 60 | B62: 黄新龙 | C62: 1152019500321 | D62: 贵阳市交通技工学校 | E62: 20101260108 | F62: 196.00 | G62: 65.33 | H62: 26.13 | I62: 87.67 | J62: 52.60 | K62: 78.73 | L62: 2 | M62: 是
A63: 61 | B63: 向若冰 | C63: 1152019511511 | D63: 贵阳市交通技工学校 | E63: 20101260108 | F63: 202.50 | G63: 67.50 | H63: 27.00 | I63: 84.33 | J63: 50.60 | K63: 77.60 | L63: 3
A64: 62 | B64: 虎梦碟 | C64: 1152019506712 | D64: 贵阳市交通技工学校 | E64: 20101260108 | F64: 201.50 | G64: 67.17 | H64: 26.87 | I64: 84.33 | J64: 50.60 | K64: 77.47 | L64: 4
A65: 63 | B65: 吴俊杰 | C65: 1152019505222 | D65: 贵阳市交通技工学校 | E65: 20101260108 | F65: 207.00 | G65: 69.00 | H65: 27.60 | I65: 81.67 | J65: 49.00 | K65: 76.60 | L65: 5
A66: 64 | B66: 郭凯杨 | C66: 1152019511122 | D66: 贵阳市交通技工学校 | E66: 20101260108 | F66: 197.00 | G66: 65.67 | H66: 26.27 | I66: 82.67 | J66: 49.60 | K66: 75.87 | L66: 6
A67: 65 | B67: 娄凌云 | C67: 1152019511721 | D67: 贵阳市交通技工学校 | E67: 20101260108 | F67: 194.50 | G67: =ROUND(F67/3,2) -> 64.83 | H67: 25.93 | I67: 81.67 | J67: 49.00 | K67: =H67+J67 -> 74.93 | L67: 7
A68: 66 | B68: 胡煜杭 | C68: 1152019502617 | D68: 贵阳市交通技工学校 | E68: 20101260108 | F68: 194.00 | G68: 64.67 | H68: 25.87 | I68: 80.67 | J68: 48.40 | K68: 74.27 | L68: 8
A69: 67 | B69: 杨晟铭 | C69: 1152019500904 | D69: 贵阳市交通技工学校 | E69: 20101260108 | F69: 195.00 | G69: 65.00 | H69: =ROUND(G69*0.4,2) -> 26.00 | I69: 75.00 | J69: =ROUND(I69*0.6,2) -> 45.00 | K69: 71.00 | L69: 9
A70: 68 | B70: 李德超 | C70: 1152019504123 | D70: 贵阳市交通技工学校 | E70: 20101260108 | F70: 198.50 | G70: 66.17 | H70: =ROUND(G70*0.4,2) -> 26.47 | I70: 0.00 | J70: =ROUND(I70*0.6,2) -> 0.00 | K70: 26.47 | L70: 10 | M70: 缺考
A71: 69 | B71: 邹欣欣 | C71: 1152019505428 | D71: 贵阳市交通技工学校 | E71: 20101260108 | F71: 195.00 | G71: 65.00 | H71: =ROUND(G71*0.4,2) -> 26.00 | I71: 0.00 | J71: =ROUND(I71*0.6,2) -> 0.00 | K71: 26.00 | L71: 11 | M71: 缺考
A72: 70 | B72: 王淳蓉 | C72: 1152019507529 | D72: 贵阳市交通技工学校 | E72: 20101260108 | F72: 192.50 | G72: 64.17 | H72: =ROUND(G72*0.4,2) -> 25.67 | I72: 0.00 | J72: =ROUND(I72*0.6,2) -> 0.00 | K72: 25.67 | L72: 12 | M72: 缺考
